{"text_format":"3","workbook":"xlsx","n_sheets":2,"sheets":["PRADŽIA","ASMENINIS MĖNESIO BIUDŽETAS"],"read":"whole","date_system":"1900"}

{"sheet":"PRADŽIA","index":0,"n_rows":7,"n_cols":2,"rows_kept":7}
[null,"APIE ŠĮ ŠABLONĄ"]
[null,"Naudokite šį asmeninį mėnesio biudžeto darbalapį, kad galėtumėte sekti savo numatomas ir faktines mėnesio pajamas bei numatomas ir faktines išlaidas."]
[null,"Įveskite išlaidas, patirtas įvairiose kategorijose, į atitinkamas lenteles."]
[null,"Numatomas balansas, faktinis balansas ir skirtumas apskaičiuojami automatiškai."]
[null,"Pastaba: "]
[null,"papildomos instrukcijos pateikiamos darbalapio ASMENINIS MĖNESIO BIUDŽETAS A stulpelyje. Šis tekstas buvo specialiai paslėptas. Norėdami pašalinti tekstą, pasirinkite A stulpelį, tada pasirinkite Naikinti. Norėdami nebeslėpti teksto, pasirinkite A stulpelį, tada pakeiskite šrifto spalvą."]
[null,"Norėdami sužinoti daugiau apie darbalapio lenteles, lentelėje paspauskite SHIFT, tada – F10, pasirinkite parinktį LENTELĖ, tada pasirinkite ALTERNATYVUS TEKSTAS."]

{"sheet":"ASMENINIS MĖNESIO BIUDŽETAS","index":1,"n_rows":64,"n_cols":10,"rows_kept":64,"merged":[[3,1,5,1],[3,2,3,3],[3,6,4,8],[3,9,4,9],[4,2,4,3],[5,2,5,3],[5,6,6,8],[5,9,6,9],[7,1,9,1],[7,2,7,3],[7,6,8,8],[7,9,8,9],[8,2,8,3],[9,2,9,3],[58,6,59,8],[58,9,59,9],[60,6,61,8],[60,9,61,9],[62,6,63,8],[62,9,63,9]]}
["Šioje darbaknygėje sukurkite asmeninį mėnesio biudžetą. Naudingos instrukcijos, kaip naudoti šį darbalapį, pateiktos šio stulpelio langeliuose. Paspauskite rodyklę žemyn, kad pradėtumėte."]
["Šio darbalapio pavadinimas yra langelyje dešinėje. Kitas nurodymas yra A4 langelyje.","ASMENINIS MĖNESIO BIUDŽETAS"]
[]
["Numatomų mėnesio pajamų žyma yra langelyje dešinėje. Įveskite 1 pajamas E4 langelyje ir papildomas pajamas E5 langelyje, kad apskaičiuotumėte bendrąsias mėnesio pajamas E6 langelyje. Kitas nurodymas yra A6 langelyje.","NUMATOMOS MĖNESIO PAJAMOS","1 pajamos",null,{"v":4300,"d":"4,300.00 EUR"},null,"NUMATOMAS BALANSAS \n(Numatomos pajamos atėmus išlaidas)",null,null,{"$f":"E6-J59","v":{"v":3405,"d":"3,405.00 EUR"}}]
[null,null,"Papildomos pajamos",null,{"v":300,"d":"300.00 EUR"}]
["Numatomas balansas automatiškai apskaičiuojamas J4 langelyje, faktinis balansas – J6 langelyje, o skirtumas – J8 langelyje. Kitas nurodymas yra A8 langelyje.",null,"Mėnesio pajamų suma",null,{"$f":"SUM(E4:E5)","v":{"v":4600,"d":"4,600.00 EUR"}},null,"FAKTINIS BALANSAS \n(Faktinės pajamos atėmus išlaidas)",null,null,{"$f":"E10-J61","v":{"v":3064,"d":"3,064.00 EUR"}}]
[]
["Faktinių mėnesio pajamų žyma yra langelyje dešinėje. Įveskite 1 pajamas E8 langelyje ir papildomas pajamas E9 langelyje, kad apskaičiuotumėte bendrąsias mėnesio pajamas E10 langelyje. Kitas nurodymas yra A12 langelyje.","FAKTINĖS MĖNESIO PAJAMOS","1 pajamos",null,{"v":4000,"d":"4,000.00 EUR"},null,"SKIRTUMAS \n(Faktinis balansas atėmus numatomą balansą)",null,null,{"$f":"J6-J4","v":{"v":-341,"d":"-341.00 EUR"}}]
[null,null,"Papildomos pajamos",null,{"v":300,"d":"300.00 EUR"}]
[null,null,"Mėnesio pajamų suma",null,{"$f":"SUM(E8:E9)","v":{"v":4300,"d":"4,300.00 EUR"}}]
[]
["Įveskite informaciją lentelėje Būstas, pradėdami langelyje dešinėje, ir lentelėje Pramogos, pradėdami G12 langelyje. Kitas nurodymas yra A25 langelyje.","BŪSTAS","Numatomos išlaidos","Faktinės išlaidos","Skirtumas",null,"PRAMOGOS","Numatomos išlaidos","Faktinės išlaidos","Skirtumas"]
[null,"Būsto paskola arba nuoma",{"v":1000,"d":"1,000.00 EUR"},{"v":1000,"d":"1,000.00 EUR"},{"$f":"Būstas[[#This Row],[Numatomos išlaidos]]-Būstas[[#This Row],[Faktinės išlaidos]]","v":{"v":0,"d":"0.00 EUR"}},null,"Naktinis pasilinksminimas",null,null,{"$f":"Pramogos[[#This Row],[Numatomos išlaidos]]-Pramogos[[#This Row],[Faktinės išlaidos]]","v":{"v":0,"d":"0.00 EUR"}}]
[null,"Telefonas",{"v":54,"d":"54.00 EUR"},{"v":100,"d":"100.00 EUR"},{"$f":"Būstas[[#This Row],[Numatomos išlaidos]]-Būstas[[#This Row],[Faktinės išlaidos]]","v":{"v":-46,"d":"-46.00 EUR"}},null,"Muzikos platformos",null,null,{"$f":"Pramogos[[#This Row],[Numatomos išlaidos]]-Pramogos[[#This Row],[Faktinės išlaidos]]","v":{"v":0,"d":"0.00 EUR"}}]
[null,"Elektra",{"v":44,"d":"44.00 EUR"},{"v":56,"d":"56.00 EUR"},{"$f":"Būstas[[#This Row],[Numatomos išlaidos]]-Būstas[[#This Row],[Faktinės išlaidos]]","v":{"v":-12,"d":"-12.00 EUR"}},null,"Filmai",null,null,{"$f":"Pramogos[[#This Row],[Numatomos išlaidos]]-Pramogos[[#This Row],[Faktinės išlaidos]]","v":{"v":0,"d":"0.00 EUR"}}]
[null,"Dujos",{"v":22,"d":"22.00 EUR"},{"v":28,"d":"28.00 EUR"},{"$f":"Būstas[[#This Row],[Numatomos išlaidos]]-Būstas[[#This Row],[Faktinės išlaidos]]","v":{"v":-6,"d":"-6.00 EUR"}},null,"Koncertai",null,null,{"$f":"Pramogos[[#This Row],[Numatomos išlaidos]]-Pramogos[[#This Row],[Faktinės išlaidos]]","v":{"v":0,"d":"0.00 EUR"}}]
[null,"Vandens ir kanalizacija",{"v":8,"d":"8.00 EUR"},{"v":8,"d":"8.00 EUR"},{"$f":"Būstas[[#This Row],[Numatomos išlaidos]]-Būstas[[#This Row],[Faktinės išlaidos]]","v":{"v":0,"d":"0.00 EUR"}},null,"Sporto renginiai",null,null,{"$f":"Pramogos[[#This Row],[Numatomos išlaidos]]-Pramogos[[#This Row],[Faktinės išlaidos]]","v":{"v":0,"d":"0.00 EUR"}}]
[null,"Kabelinė televizija",{"v":34,"d":"34.00 EUR"},{"v":34,"d":"34.00 EUR"},{"$f":"Būstas[[#This Row],[Numatomos išlaidos]]-Būstas[[#This Row],[Faktinės išlaidos]]","v":{"v":0,"d":"0.00 EUR"}},null,"Teatras",null,null,{"$f":"Pramogos[[#This Row],[Numatomos išlaidos]]-Pramogos[[#This Row],[Faktinės išlaidos]]","v":{"v":0,"d":"0.00 EUR"}}]
[null,"Atliekų tvarkymas",{"v":10,"d":"10.00 EUR"},{"v":10,"d":"10.00 EUR"},{"$f":"Būstas[[#This Row],[Numatomos išlaidos]]-Būstas[[#This Row],[Faktinės išlaidos]]","v":{"v":0,"d":"0.00 EUR"}},null,"Kita",null,null,{"$f":"Pramogos[[#This Row],[Numatomos išlaidos]]-Pramogos[[#This Row],[Faktinės išlaidos]]","v":{"v":0,"d":"0.00 EUR"}}]
[null,"Priežiūra arba remontas",{"v":23,"d":"23.00 EUR"},{"v":0,"d":"0.00 EUR"},{"$f":"Būstas[[#This Row],[Numatomos išlaidos]]-Būstas[[#This Row],[Faktinės išlaidos]]","v":{"v":23,"d":"23.00 EUR"}},null,"Kita",null,null,{"$f":"Pramogos[[#This Row],[Numatomos išlaidos]]-Pramogos[[#This Row],[Faktinės išlaidos]]","v":{"v":0,"d":"0.00 EUR"}}]
[null,"Tiekimas",{"v":0,"d":"0.00 EUR"},{"v":0,"d":"0.00 EUR"},{"$f":"Būstas[[#This Row],[Numatomos išlaidos]]-Būstas[[#This Row],[Faktinės išlaidos]]","v":{"v":0,"d":"0.00 EUR"}},null,"Kita",null,null,{"$f":"Pramogos[[#This Row],[Numatomos išlaidos]]-Pramogos[[#This Row],[Faktinės išlaidos]]","v":{"v":0,"d":"0.00 EUR"}}]
[null,"Kita",{"v":0,"d":"0.00 EUR"},{"v":0,"d":"0.00 EUR"},{"$f":"Būstas[[#This Row],[Numatomos išlaidos]]-Būstas[[#This Row],[Faktinės išlaidos]]","v":{"v":0,"d":"0.00 EUR"}},null,"Tarpinė suma",null,null,{"$f":"SUBTOTAL(109,Pramogos[Skirtumas])","v":{"v":0,"d":"0.00 EUR"}}]
[null,"Tarpinė suma",null,null,{"$f":"SUBTOTAL(109,Būstas[Skirtumas])","v":{"v":-41,"d":"-41.00 EUR"}}]
[{"$nulls":6},"PASKOLOS","Numatomos išlaidos","Faktinės išlaidos","Skirtumas"]
["Įveskite informaciją lentelėje Transportavimas, pradėdami langelyje dešinėje, ir lentelėje Paskolos, pradėdami G24 langelyje. Kitas nurodymas yra A35 langelyje.","TRANSPORTAS","Numatomos išlaidos","Faktinės išlaidos","Skirtumas",null,"Asmeninės",null,null,{"$f":"Paskolos[[#This Row],[Numatomos išlaidos]]-Paskolos[[#This Row],[Faktinės išlaidos]]","v":{"v":0,"d":"0.00 EUR"}}]
[null,"Įmoka už automobilį",null,null,{"$f":"Transportas[[#This Row],[Numatomos išlaidos]]-Transportas[[#This Row],[Faktinės išlaidos]]","v":{"v":0,"d":"0.00 EUR"}},null,"Studento",null,null,{"$f":"Paskolos[[#This Row],[Numatomos išlaidos]]-Paskolos[[#This Row],[Faktinės išlaidos]]","v":{"v":0,"d":"0.00 EUR"}}]
[null,"Autobuso / taksi mokestis",null,null,{"$f":"Transportas[[#This Row],[Numatomos išlaidos]]-Transportas[[#This Row],[Faktinės išlaidos]]","v":{"v":0,"d":"0.00 EUR"}},null,"Kredito kortelė",null,null,{"$f":"Paskolos[[#This Row],[Numatomos išlaidos]]-Paskolos[[#This Row],[Faktinės išlaidos]]","v":{"v":0,"d":"0.00 EUR"}}]
[null,"Draudimas",null,null,{"$f":"Transportas[[#This Row],[Numatomos išlaidos]]-Transportas[[#This Row],[Faktinės išlaidos]]","v":{"v":0,"d":"0.00 EUR"}},null,"Kredito kortelė",null,null,{"$f":"Paskolos[[#This Row],[Numatomos išlaidos]]-Paskolos[[#This Row],[Faktinės išlaidos]]","v":{"v":0,"d":"0.00 EUR"}}]
[null,"Licencijavimas",null,null,{"$f":"Transportas[[#This Row],[Numatomos išlaidos]]-Transportas[[#This Row],[Faktinės išlaidos]]","v":{"v":0,"d":"0.00 EUR"}},null,"Kredito kortelė",null,null,{"$f":"Paskolos[[#This Row],[Numatomos išlaidos]]-Paskolos[[#This Row],[Faktinės išlaidos]]","v":{"v":0,"d":"0.00 EUR"}}]
[null,"Kuras",null,null,{"$f":"Transportas[[#This Row],[Numatomos išlaidos]]-Transportas[[#This Row],[Faktinės išlaidos]]","v":{"v":0,"d":"0.00 EUR"}},null,"Kita",null,null,{"$f":"Paskolos[[#This Row],[Numatomos išlaidos]]-Paskolos[[#This Row],[Faktinės išlaidos]]","v":{"v":0,"d":"0.00 EUR"}}]
[null,"Priežiūra",null,null,{"$f":"Transportas[[#This Row],[Numatomos išlaidos]]-Transportas[[#This Row],[Faktinės išlaidos]]","v":{"v":0,"d":"0.00 EUR"}},null,"Tarpinė suma",null,null,{"$f":"SUBTOTAL(109,Paskolos[Skirtumas])","v":{"v":0,"d":"0.00 EUR"}}]
[null,"Kita",null,null,{"$f":"Transportas[[#This Row],[Numatomos išlaidos]]-Transportas[[#This Row],[Faktinės išlaidos]]","v":{"v":0,"d":"0.00 EUR"}}]
[null,"Tarpinė suma",null,null,{"$f":"SUBTOTAL(109,Transportas[Skirtumas])","v":{"v":0,"d":"0.00 EUR"}},null,"MOKESČIAI","Numatomos išlaidos","Faktinės išlaidos","Skirtumas"]
[{"$nulls":6},"Federaliniai",null,null,{"$f":"Mokesčiai[[#This Row],[Numatomos išlaidos]]-Mokesčiai[[#This Row],[Faktinės išlaidos]]","v":{"v":0,"d":"0.00 EUR"}}]
["Įveskite informaciją lentelėje Draudimas, pradėdami langelyje dešinėje, ir lentelėje Mokesčiai, pradėdami G33 langelyje. Kitas nurodymas yra A42 langelyje.","Draudimas","Numatomos išlaidos","Faktinės išlaidos","Skirtumas",null,"Šalies",null,null,{"$f":"Mokesčiai[[#This Row],[Numatomos išlaidos]]-Mokesčiai[[#This Row],[Faktinės išlaidos]]","v":{"v":0,"d":"0.00 EUR"}}]
[null,"Namų",null,null,{"$f":"Draudimas[[#This Row],[Numatomos išlaidos]]-Draudimas[[#This Row],[Faktinės išlaidos]]","v":{"v":0,"d":"0.00 EUR"}},null,"Vietiniai",null,null,{"$f":"Mokesčiai[[#This Row],[Numatomos išlaidos]]-Mokesčiai[[#This Row],[Faktinės išlaidos]]","v":{"v":0,"d":"0.00 EUR"}}]
[null,"Sveikatos",null,null,{"$f":"Draudimas[[#This Row],[Numatomos išlaidos]]-Draudimas[[#This Row],[Faktinės išlaidos]]","v":{"v":0,"d":"0.00 EUR"}},null,"Kita",null,null,{"$f":"Mokesčiai[[#This Row],[Numatomos išlaidos]]-Mokesčiai[[#This Row],[Faktinės išlaidos]]","v":{"v":0,"d":"0.00 EUR"}}]
[null,"Gyvybės",null,null,{"$f":"Draudimas[[#This Row],[Numatomos išlaidos]]-Draudimas[[#This Row],[Faktinės išlaidos]]","v":{"v":0,"d":"0.00 EUR"}},null,"Tarpinė suma",null,null,{"$f":"SUBTOTAL(109,Mokesčiai[Skirtumas])","v":{"v":0,"d":"0.00 EUR"}}]
[null,"Kita",null,null,{"$f":"Draudimas[[#This Row],[Numatomos išlaidos]]-Draudimas[[#This Row],[Faktinės išlaidos]]","v":{"v":0,"d":"0.00 EUR"}}]
[null,"Tarpinė suma",null,null,{"$f":"SUBTOTAL(109,Draudimas[Skirtumas])","v":{"v":0,"d":"0.00 EUR"}},null,"SANTAUPOS ARBA INVESTICIJOS","Numatomos išlaidos","Faktinės išlaidos","Skirtumas"]
[{"$nulls":6},"Pensijos sąskaita",null,null,{"$f":"Taupymas[[#This Row],[Numatomos išlaidos]]-Taupymas[[#This Row],[Faktinės išlaidos]]","v":{"v":0,"d":"0.00 EUR"}}]
["Įveskite informaciją lentelėje Maistas, pradėdami langelyje dešinėje, ir lentelėje Santaupos, pradėdami G40 langelyje. Kitas nurodymas yra A48 langelyje.","MAISTAS","Numatomos išlaidos","Faktinės išlaidos","Skirtumas",null,"Investicijų sąskaita",null,null,{"$f":"Taupymas[[#This Row],[Numatomos išlaidos]]-Taupymas[[#This Row],[Faktinės išlaidos]]","v":{"v":0,"d":"0.00 EUR"}}]
[null,"Maisto prekės",null,null,{"$f":"Maistas[[#This Row],[Numatomos išlaidos]]-Maistas[[#This Row],[Faktinės išlaidos]]","v":{"v":0,"d":"0.00 EUR"}},null,"Kita",null,null,{"$f":"Taupymas[[#This Row],[Numatomos išlaidos]]-Taupymas[[#This Row],[Faktinės išlaidos]]","v":{"v":0,"d":"0.00 EUR"}}]
[null,"Restoranai",null,null,{"$f":"Maistas[[#This Row],[Numatomos išlaidos]]-Maistas[[#This Row],[Faktinės išlaidos]]","v":{"v":0,"d":"0.00 EUR"}},null,"Tarpinė suma",null,null,{"$f":"SUBTOTAL(109,Taupymas[Skirtumas])","v":{"v":0,"d":"0.00 EUR"}}]
[null,"Kita",null,null,{"$f":"Maistas[[#This Row],[Numatomos išlaidos]]-Maistas[[#This Row],[Faktinės išlaidos]]","v":{"v":0,"d":"0.00 EUR"}}]
[null,"Tarpinė suma",null,null,{"$f":"SUBTOTAL(109,Maistas[Skirtumas])","v":{"v":0,"d":"0.00 EUR"}},null,"DOVANOS IR AUKOS","Numatomos išlaidos","Faktinės išlaidos","Skirtumas"]
[{"$nulls":6},"Labdara 1",null,null,{"$f":"Dovanos[[#This Row],[Numatomos išlaidos]]-Dovanos[[#This Row],[Faktinės išlaidos]]","v":{"v":0,"d":"0.00 EUR"}}]
["Įveskite informaciją lentelėje Gyvūnai, pradėdami langelyje dešinėje, ir lentelėje Dovanos, pradėdami G46 langelyje. Kitas nurodymas yra A56 langelyje.","Gyvūnai","Numatomos išlaidos","Faktinės išlaidos","Skirtumas",null,"Labdara 2",null,null,{"$f":"Dovanos[[#This Row],[Numatomos išlaidos]]-Dovanos[[#This Row],[Faktinės išlaidos]]","v":{"v":0,"d":"0.00 EUR"}}]
[null,"Maistas",null,null,{"$f":"Augintiniai[[#This Row],[Numatomos išlaidos]]-Augintiniai[[#This Row],[Faktinės išlaidos]]","v":{"v":0,"d":"0.00 EUR"}},null,"Labdara 3",null,null,{"$f":"Dovanos[[#This Row],[Numatomos išlaidos]]-Dovanos[[#This Row],[Faktinės išlaidos]]","v":{"v":0,"d":"0.00 EUR"}}]
[null,"Medicininės išlaidos",null,null,{"$f":"Augintiniai[[#This Row],[Numatomos išlaidos]]-Augintiniai[[#This Row],[Faktinės išlaidos]]","v":{"v":0,"d":"0.00 EUR"}},null,"Tarpinė suma",null,null,{"$f":"SUBTOTAL(109,Dovanos[Skirtumas])","v":{"v":0,"d":"0.00 EUR"}}]
[null,"Priežiūra",null,null,{"$f":"Augintiniai[[#This Row],[Numatomos išlaidos]]-Augintiniai[[#This Row],[Faktinės išlaidos]]","v":{"v":0,"d":"0.00 EUR"}}]
[null,"Žaislai",null,null,{"$f":"Augintiniai[[#This Row],[Numatomos išlaidos]]-Augintiniai[[#This Row],[Faktinės išlaidos]]","v":{"v":0,"d":"0.00 EUR"}},null,"TEISINĖS","Numatomos išlaidos","Faktinės išlaidos","Skirtumas"]
[null,"Kita",null,null,{"$f":"Augintiniai[[#This Row],[Numatomos išlaidos]]-Augintiniai[[#This Row],[Faktinės išlaidos]]","v":{"v":0,"d":"0.00 EUR"}},null,"Teisininkas",null,null,{"$f":"Teisinis[[#This Row],[Numatomos išlaidos]]-Teisinis[[#This Row],[Faktinės išlaidos]]","v":{"v":0,"d":"0.00 EUR"}}]
[null,"Tarpinė suma",null,null,{"$f":"SUBTOTAL(109,Augintiniai[Skirtumas])","v":{"v":0,"d":"0.00 EUR"}},null,"Alimentai",null,null,{"$f":"Teisinis[[#This Row],[Numatomos išlaidos]]-Teisinis[[#This Row],[Faktinės išlaidos]]","v":{"v":0,"d":"0.00 EUR"}}]
[{"$nulls":6},"Mokėjimai paskolai arba teismo sprendimui padengti",null,null,{"$f":"Teisinis[[#This Row],[Numatomos išlaidos]]-Teisinis[[#This Row],[Faktinės išlaidos]]","v":{"v":0,"d":"0.00 EUR"}}]
["Įveskite informaciją lentelėje Asmeninė priežiūra, pradėdami langelyje dešinėje, ir lentelėje Teisinės, pradėdami G52 langelyje. Kitas nurodymas yra A59 langelyje.","Asmeninė priežiūra","Numatomos išlaidos","Faktinės išlaidos","Skirtumas",null,"Kita",null,null,{"$f":"Teisinis[[#This Row],[Numatomos išlaidos]]-Teisinis[[#This Row],[Faktinės išlaidos]]","v":{"v":0,"d":"0.00 EUR"}}]
[null,"Medicininės išlaidos",null,null,{"$f":"PersonalCare[[#This Row],[Numatomos išlaidos]]-PersonalCare[[#This Row],[Faktinės išlaidos]]","v":{"v":0,"d":"0.00 EUR"}},null,"Tarpinė suma",null,null,{"$f":"SUBTOTAL(109,Teisinis[Skirtumas])","v":{"v":0,"d":"0.00 EUR"}}]
[null,"Plaukai / nagai",null,null,{"$f":"PersonalCare[[#This Row],[Numatomos išlaidos]]-PersonalCare[[#This Row],[Faktinės išlaidos]]","v":{"v":0,"d":"0.00 EUR"}}]
["Bendrosios numatomos išlaidos automatiškai apskaičiuojamos J59 langelyje, bendrosios faktinės išlaidos – J61 langelyje, o bendrasis skirtumas – J63 langelyje.","Drabužiai",null,null,{"$f":"PersonalCare[[#This Row],[Numatomos išlaidos]]-PersonalCare[[#This Row],[Faktinės išlaidos]]","v":{"v":0,"d":"0.00 EUR"}},null,"NUMATOMŲ IŠLAIDŲ SUMA",null,null,{"$f":"SUBTOTAL(109,Būstas[Numatomos išlaidos],Transportas[Numatomos išlaidos],Draudimas[Numatomos išlaidos],Maistas[Numatomos išlaidos],Augintiniai[Numatomos išlaidos],PersonalCare[Numatomos išlaidos],Pramogos[Numatomos išlaidos],Paskolos[Numatomos išlaidos],Mokesčiai[Numatomos išlaidos],Taupymas[Numatomos išlaidos],Dovanos[Numatomos išlaidos],Teisinis[Numatomos išlaidos])","v":{"v":1195,"d":"1,195.00 EUR"}}]
[null,"Drabužių valykla",null,null,{"$f":"PersonalCare[[#This Row],[Numatomos išlaidos]]-PersonalCare[[#This Row],[Faktinės išlaidos]]","v":{"v":0,"d":"0.00 EUR"}}]
[null,"Sveikatos klubas",null,null,{"$f":"PersonalCare[[#This Row],[Numatomos išlaidos]]-PersonalCare[[#This Row],[Faktinės išlaidos]]","v":{"v":0,"d":"0.00 EUR"}},null,"FAKTINIŲ IŠLAIDŲ SUMA",null,null,{"$f":"SUBTOTAL(109,Būstas[Faktinės išlaidos],Transportas[Faktinės išlaidos],Draudimas[Faktinės išlaidos],Maistas[Faktinės išlaidos],Augintiniai[Faktinės išlaidos],PersonalCare[Faktinės išlaidos],Pramogos[Faktinės išlaidos],Paskolos[Faktinės išlaidos],Mokesčiai[Faktinės išlaidos],Taupymas[Faktinės išlaidos],Dovanos[Faktinės išlaidos],Teisinis[Faktinės išlaidos])","v":{"v":1236,"d":"1,236.00 EUR"}}]
[null,"Organizacijos mokesčiai ir įmokos",null,null,{"$f":"PersonalCare[[#This Row],[Numatomos išlaidos]]-PersonalCare[[#This Row],[Faktinės išlaidos]]","v":{"v":0,"d":"0.00 EUR"}}]
[null,"Kita",null,null,{"$f":"PersonalCare[[#This Row],[Numatomos išlaidos]]-PersonalCare[[#This Row],[Faktinės išlaidos]]","v":{"v":0,"d":"0.00 EUR"}},null,"SKIRTUMO SUMA",null,null,{"$f":"J59-J61","v":{"v":-41,"d":"-41.00 EUR"}}]
[null,"Tarpinė suma",null,null,{"$f":"SUBTOTAL(109,PersonalCare[Skirtumas])","v":{"v":0,"d":"0.00 EUR"}}]